fUSD/lending_fUSD_20260316
["ID","MTS","AMOUNT","RATE_DAILY","PERIOD"]
[408459526,1773676233016,-500.0,0.00017954,2]
[408459527,1773676233025,-500.0,0.00017954,2]
[408459528,1773676233035,-500.0,0.00017954,2]
[408459529,1773676233044,-500.0,0.00017954,2]
[408459530,1773676233053,-500.0,0.00017954,2]
[408459531,1773676233062,-250.0,0.00017954,2]
[408459532,1773676233071,-250.0,0.00017954,2]
[408459533,1773676233080,-250.0,0.00017954,2]
[408459534,1773676233090,-250.0,0.00017954,2]
[408459535,1773676233099,-500.0,0.00017954,2]
[408459536,1773676233109,-250.0,0.00017954,2]
[408459537,1773676233118,-500.0,0.00017954,2]
[408459538,1773676233127,-250.0,0.00017954,2]
[408459539,1773676233136,-500.0,0.00017954,2]
[408459540,1773676233145,-250.0,0.00017954,2]
[408459541,1773676233154,-500.0,0.00017954,2]
[408459542,1773676233163,-250.0,0.00017954,2]
[408459543,1773676233172,-500.0,0.00017954,2]
[408459544,1773676233181,-500.0,0.00017954,2]
[408459545,1773676233192,-500.0,0.00017954,2]
[408459546,1773676233201,-2500.0,0.00017966,2]
[408459547,1773676233210,-195.0,0.00017966,2]
[408459548,1773676233220,-179.49839145,0.00017966,2]
[408459549,1773676233229,-151.0,0.00018009,2]
[408459550,1773676233238,-161.04,0.00018035,2]
[408459551,1773676233247,-1600.0,0.00018082,7]
[408459552,1773676233256,-1376.0,0.00018106,2]
[408459553,1773676233265,-350.0,0.00018125,2]
[408459554,1773676233275,-350.0,0.00018149,2]
[408459555,1773676233284,-168.0,0.0001815,2]
[408459556,1773676233293,-2437.5719377,0.00018156,2]
[408459557,1773676233302,-500.0,0.00018175,2]
[408459558,1773676233312,-11.56152909,0.00018202,2]
[408459559,1773676233324,-156.43847091,0.00018202,2]
[408459560,1773676233333,-500.0,0.0001823,2]
[408459561,1773676233342,-500.0,0.00018234,2]
[408459562,1773676233351,-500.0,0.00018234,2]
[408459563,1773676233359,-197.04322909,0.00018256,2]
[408459564,1773676233371,-38530.86477091,0.00018256,2]
[408459565,1773676233380,-2833.3875,0.00018256,2]
[408459566,1773676233388,-314.64157434,0.00018256,2]
[408459567,1773676233398,-500.0,0.00018285,2]
[408459568,1773676233408,-500.0,0.00018289,2]
[408459569,1773676233417,-500.0,0.00018289,2]
[408459570,1773676233429,-200.0,0.000183,6]
[408459571,1773676233439,-168.0,0.00018321,2]
[408459572,1773676233449,-500.0,0.00018339,2]
[408459573,1773676233458,-448.94132105,0.00018344,2]
[408459574,1773676233467,-500.0,0.00018344,2]
[408459575,1773676233477,-381.977457,0.00018346,7]
[408459576,1773676233487,-219.016771,0.00018346,7]
[408459577,1773676233496,-226.584233,0.00018346,7]
[408459578,1773676233506,-3493.99270374,0.00018349,2]
[408459579,1773676233515,-1400.0,0.00018356,7]
[408459580,1773676233524,-500.0,0.00018356,7]
[408459581,1773676233534,-599.92348891,0.00018394,2]
[408459582,1773676233544,-500.0,0.00018398,2]
[408459583,1773676233554,-500.0,0.000184,6]
[408459584,1773676233564,-2975.4377,0.00018407,2]
[408459585,1773676233574,-221.833574,0.00018418,7]
[408459586,1773676233584,-376.0,0.0001842,2]
[408459587,1773676233593,-3493.99270368,0.00018421,2]
[408459588,1773676233602,-2500.0,0.00018438,2]
[408459589,1773676233612,-483.24969942,0.00018448,2]
[408459590,1773676233622,-477.13829296,0.00018448,2]
[408459591,1773676233631,-500.0,0.00018448,2]
[408459592,1773676233640,-500.0,0.00018448,2]
[408459593,1773676233650,-500.0,0.00018448,2]
[408459594,1773676233659,-623.31662403,0.00018448,2]
[408459595,1773676233669,-278.66328768,0.00018448,2]
[408459596,1773676233679,-500.0,0.00018448,2]
[408459597,1773676233691,-500.0,0.00018448,2]
[408459598,1773676233700,-500.0,0.00018448,2]
[408459599,1773676233710,-500.0,0.00018448,2]
[408459600,1773676233719,-500.0,0.00018448,2]
[408459601,1773676233728,-500.0,0.00018448,2]
[408459602,1773676233737,-500.0,0.00018448,2]
[408459603,1773676233747,-500.0,0.00018448,2]
[408459604,1773676233756,-659.73813236,0.00018449,2]
[408459605,1773676233766,-825.49456721,0.00018449,2]
[408459606,1773676233775,-12350.44269644,0.00018449,2]
[408459607,1773676233784,-5000.0,0.00018449,2]
[408459608,1773676233793,-297.0,0.00018452,2]
[408459609,1773676233803,-500.0,0.00018453,2]
[408459610,1773676233812,-168.0,0.00018454,2]
[408459611,1773676233823,-1000.0,0.00018468,2]
[408459612,1773676233833,-686.26012149,0.00018468,2]
[408459613,1773676233842,-1000.0,0.00018468,2]
[408459614,1773676233851,-1000.0,0.00018468,2]
[408459615,1773676233860,-1000.0,0.00018468,2]
[408459616,1773676233870,-1000.0,0.00018468,2]
[408459617,1773676233879,-3493.99270368,0.00018494,2]
[408459618,1773676233888,-700.0,0.000185,6]
[408459619,1773676233898,-4594.836,0.00018507,2]
[408459620,1773676233907,-173.946,0.00018507,2]
[408459621,1773676233916,-500.0,0.00018508,2]
[408459622,1773676233926,-13321.54818618,0.00018508,2]
[408459623,1773676233935,-12350.44269637,0.0001851,2]
[408459624,1773676233947,-159.65926722,0.00018518,2]
[408459625,1773676233956,-168.0,0.0001853,2]
[408459626,1773676233965,-500.0,0.00018533,2]
[408459627,1773676233975,-575.77187078,0.00018539,2]
[408459628,1773676233984,-350.0,0.0001854,2]
[408459629,1773676233993,-1089.92,0.00018548,2]
[408459630,1773676234003,-500.0,0.00018548,2]
[408459631,1773676234012,-500.0,0.00018548,2]
[408459632,1773676234022,-500.0,0.00018548,2]
[408459633,1773676234031,-500.0,0.00018548,2]
[408459634,1773676234040,-500.0,0.00018548,2]
[408459635,1773676234050,-270.25770309,0.00018548,2]
[408459636,1773676234059,-500.0,0.00018548,2]
[408459637,1773676234069,-556.29064313,0.00018548,2]
[408459638,1773676234078,-500.0,0.00018548,2]
[408459639,1773676234087,-500.0,0.00018548,2]
[408459640,1773676234097,-373.34380687,0.00018548,2]
[408459641,1773676234106,-180.99482866,0.00018548,2]
[408459642,1773676234115,-346.32892605,0.00018548,2]
[408459643,1773676234125,-150.0,0.00018548,2]
[408459644,1773676234134,-329790.03914,0.00018549,2]
[408459645,1773676234146,-29919.90366207,0.00018549,2]
[408459646,1773676234157,-6817.24270273,0.00018549,2]
[408459651,1773676238355,-1430.30717009,0.00018549,2]
[408459652,1773676238366,-1156.64895023,0.00018549,2]
[408459653,1773676238378,-4323.97622052,0.00018549,2]
[408459654,1773676238389,-994.64798335,0.00018549,2]
[408459655,1773676238400,-1087.69215937,0.00018549,2]
[408459680,1773676238655,-996.65698671,0.00018549,2]
[408459748,1773676240580,-854.13232477,0.00018549,2]
[408459749,1773676240639,-2512.3783548,0.00018549,2]
[408459750,1773676240655,-1522018.26554536,0.00018549,2]
[408459751,1773676240665,-1034.25,0.00018549,2]
[408459752,1773676240678,-500.0,0.00018563,2]
[408459753,1773676240687,-3493.99270368,0.00018566,2]
[408459754,1773676240698,-12350.44269637,0.00018571,2]
[408459755,1773676240707,-500.0,0.00018573,2]
[408459756,1773676240718,-500.0,0.00018573,2]
[408459757,1773676240728,-503.22825721,0.00018573,2]
[408459758,1773676240892,-500.0,0.00018573,2]
[408459759,1773676240904,-500.0,0.00018573,2]
[408459760,1773676240913,-368.93202184,0.00018573,2]
[408459762,1773676240923,-502.8043416,0.00018573,2]
[408459763,1773676240932,-500.0,0.00018573,2]
[408459764,1773676240942,-411.93023927,0.00018573,2]
[408459765,1773676240951,-1000.0,0.000186,6]
[408459766,1773676240960,-575.77187078,0.000186,2]
[408459767,1773676240970,-376.0,0.00018601,2]
[408459768,1773676240979,-500.0,0.00018604,2]
[408459769,1773676240989,-500.0,0.00018604,2]
[408459770,1773676240998,-500.0,0.00018604,2]
[408459771,1773676241008,-1500000.0,0.0001861,2]
[408459772,1773676241017,-500.0,0.00018618,2]
[408459773,1773676241028,-12350.44269637,0.00018633,2]
[408459774,1773676241037,-3493.99270368,0.00018638,2]
[408459775,1773676241046,-500.0,0.00018672,2]
[408459776,1773676241056,-500.0,0.00018673,2]
[408459777,1773676241065,-526.19704835,0.00018673,2]
[408459778,1773676241075,-336.85380746,0.00018673,2]
[408459779,1773676241085,-506.49172954,0.00018673,2]
[408459780,1773676241094,-501.93995683,0.00018673,2]
[408459781,1773676241103,-500.0,0.00018673,2]
[408459782,1773676241113,-500.0,0.00018673,2]
[408459783,1773676241122,-500.48646595,0.00018673,2]
[408459784,1773676241131,-501.14795082,0.00018673,2]
[408459785,1773676241140,-504.49282285,0.00018673,2]
[408459786,1773676241150,-500.0,0.00018673,2]
[408459787,1773676241161,-501.08688956,0.00018673,2]
[408459788,1773676241171,-501.02691611,0.00018673,2]
[408459789,1773676241187,-1200.0,0.000187,6]
[408459790,1773676241200,-3493.99270368,0.00018711,2]
[408459791,1773676241210,-3786.8011339,0.00018718,2]
[408459792,1773676241220,-500.0,0.00018719,2]
[408459793,1773676241230,-500.0,0.00018719,2]
[408459794,1773676241240,-224184.18114331,0.0001872,2]
[408459795,1773676241250,-1000.0,0.00018724,2]
[408459796,1773676241260,-659.73813236,0.00018725,2]
[408459797,1773676241270,-500.0,0.00018727,2]
[408459798,1773676241280,-1000.0,0.00018729,2]
[408459799,1773676241290,-1000.0,0.0001874,2]
[408459800,1773676241300,-150.0,0.00018757,2]
[408459801,1773676241310,-500.0,0.00018782,2]
[408459802,1773676241319,-3493.99270368,0.00018783,2]
[408459803,1773676241329,-1000.0,0.00018784,2]
[408459804,1773676241338,-32961.6878,0.00018794,2]
[408459805,1773676241348,-1000.0,0.00018794,2]
[408459806,1773676241358,-1000.0,0.00018798,2]
[408459807,1773676241372,-500.0,0.00018799,2]
[408459808,1773676241381,-500.0,0.00018799,2]
[408459809,1773676241391,-500.0,0.00018799,2]
[408459810,1773676241401,-514.38572506,0.00018799,2]
[408459811,1773676241411,-354.39374117,0.00018799,2]
[408459812,1773676241420,-500.0,0.00018799,2]
[408459813,1773676241430,-500.0,0.00018799,2]
[408459814,1773676241441,-500.0,0.00018799,2]
[408459815,1773676241452,-500.0,0.00018799,2]
[408459816,1773676241462,-500.0,0.00018799,2]
[408459817,1773676241472,-2145.0,0.000188,5]
[408459818,1773676241483,-200.0,0.000188,2]
[408459819,1773676241492,-200.0,0.000188,6]
[408459820,1773676241502,-350.0,0.0001881,2]
[408459821,1773676241512,-1089.92,0.00018822,2]
[408459822,1773676241521,-350.0,0.00018828,2]
[408459823,1773676241530,-500.0,0.00018837,2]
[408459824,1773676241540,-175.49,0.00018853,2]
[408459825,1773676241550,-3493.99270368,0.00018855,2]
[408459826,1773676241559,-500.0,0.00018873,2]
[408459827,1773676241569,-500.0,0.00018873,2]
[408459828,1773676241579,-150.0,0.00018875,2]
[408459829,1773676241588,-1000.0,0.0001889,2]
[408459830,1773676241597,-336.0,0.00018892,2]
[408459831,1773676241607,-500.0,0.00018893,2]
[408459832,1773676241616,-500.0,0.00018893,2]
[408459833,1773676241626,-301175.7062525,0.00018894,2]
[408459834,1773676241636,-7016.0379512,0.00018894,2]
[408459835,1773676241645,-1819.3896486,0.00018894,2]
[408459836,1773676241654,-4768.7273165,0.00018894,2]
[408459837,1773676241664,-915029.56600129,0.000189,2]
[408459858,1773676243390,-477.47857312,0.00018518,2]
[408459859,1773676243400,-477.4785731,0.00018614,2]
[408459860,1773676243409,-477.4785731,0.00018711,2]
[408459861,1773676243419,-477.4785731,0.00018807,2]
[408459862,1773676243428,-908.97540932,0.000189,2]
[408459863,1773676243439,-1012.19947126,0.000189,2]
[408459864,1773676243801,-120602.89323133,0.000189,2]
[408459865,1773676243810,-167.89,0.000189,2]
[408459866,1773676243820,-1538.0,0.000189,2]
[408459867,1773676243830,-8565.97929041,0.000189,2]
[408459868,1773676243839,-1264.25426987,0.000189,2]
[408459869,1773676243850,-735.74573013,0.000189,2]
[408459870,1773676243860,-200.0,0.000189,2]
[408459871,1773676243869,-200.0,0.000189,2]
[408459872,1773676243878,-200.0,0.000189,2]
[408459873,1773676243887,-917.16990463,0.000189,2]
[408459874,1773676243897,-151.0,0.000189,2]
[408459875,1773676243906,-200.0,0.000189,2]
[408459876,1773676243915,-1519.0,0.000189,2]
[408459877,1773676243924,-1519.0,0.000189,2]
[408459878,1773676243933,-161.31228745,0.000189,2]
[408459879,1773676243943,-1519.0,0.000189,2]
[408459880,1773676243952,-1519.0,0.000189,2]
[408459881,1773676243962,-1519.0,0.000189,2]
[408459882,1773676243971,-1519.0,0.000189,2]
[408459883,1773676243980,-1519.0,0.000189,2]
[408459884,1773676243989,-1519.0,0.000189,2]
[408459885,1773676243999,-1519.0,0.000189,2]
[408459886,1773676244008,-1519.0,0.000189,2]
[408459887,1773676244018,-1519.0,0.000189,2]
[408459888,1773676244027,-1519.0,0.000189,2]
[408459889,1773676244037,-1519.0,0.000189,2]
[408459890,1773676244046,-1519.0,0.000189,2]
[408459891,1773676244055,-1519.0,0.000189,2]
[408459892,1773676244064,-1519.0,0.000189,2]
[408459893,1773676244073,-1519.0,0.000189,2]
[408459894,1773676244083,-1519.0,0.000189,2]
[408459895,1773676244093,-1267.65827315,0.000189,2]
[408459896,1773676244103,-1519.0,0.000189,2]
[408459897,1773676244113,-2000.0,0.000189,2]
[408459898,1773676244122,-500.0,0.000189,2]
[408459899,1773676244132,-200.0,0.000189,6]
[408459900,1773676244141,-1538.0,0.000189,2]
[408459901,1773676244151,-160.0,0.000189,2]
[408459902,1773676244160,-996.0,0.000189,2]
[408459903,1773676244169,-235.49250186,0.000189,2]
[408459904,1773676244179,-569.0,0.000189,2]
[408459905,1773676244188,-150.0,0.000189,2]
[408459906,1773676244199,-150.0,0.000189,2]
[408459907,1773676244208,-150.0,0.000189,2]
[408459908,1773676244217,-153.18331945,0.000189,2]
[408459909,1773676244226,-477.4785731,0.00018904,2]
[408459910,1773676244235,-177.64063447,0.00018904,2]
[408459911,1773676244245,-153.85235848,0.00018916,2]
[408459912,1773676244255,-1143.39001632,0.00018916,2]
[408459913,1773676244264,-1000.0,0.00018916,2]
[408459914,1773676244273,-152.0,0.0001892,4]
[408459915,1773676244282,-830.76,0.00018925,2]
[408459916,1773676244291,-150.0,0.00018925,2]
[408459917,1773676244301,-3493.99270368,0.00018928,2]
[408459918,1773676244311,-1472.0,0.00018938,2]
[408459919,1773676244320,-700.0,0.00018938,2]
[408459920,1773676244329,-1000.0,0.0001895,2]
[408459921,1773676244339,-892.50890879,0.00018987,2]
[408459922,1773676244348,-200.0,0.0001899,2]
[408459923,1773676244357,-156.29588656,0.00018996,2]
[408459924,1773676244366,-500.0,0.00018998,2]
[408459925,1773676244376,-4741.00799026,0.00019,2]
[408459926,1773676244385,-350.0,0.00019,2]
[408459927,1773676244394,-158.97078915,0.00019,2]
[408459928,1773676244404,-659.73813236,0.00019,2]
[408459929,1773676244413,-3493.99270368,0.00019,2]
[408459930,1773676244422,-477.4785731,0.00019,2]
[408459931,1773676244432,-500.0,0.00019016,2]
[408459932,1773676244441,-282.33990359,0.00019016,2]
[408459933,1773676244452,-914.0,0.0001904,2]
[408459934,1773676244462,-200.0,0.00019089,2]
[408459935,1773676244471,-200.0,0.00019089,2]
[408459936,1773676244481,-200.0,0.00019089,2]
[408459937,1773676244490,-575.77187078,0.0001909,2]
[408459939,1773676244500,-1089.92,0.00019096,2]
[408459940,1773676244509,-151.0,0.00019097,2]
[408459941,1773676244518,-500.0,0.00019099,2]
[408459942,1773676244528,-500.0,0.00019099,2]
[408459943,1773676244539,-500.0,0.00019099,2]
[408459944,1773676244551,-500.0,0.00019099,2]
[408459945,1773676244560,-500.0,0.00019099,2]
[408459946,1773676244569,-500.0,0.00019099,2]
[408459947,1773676244578,-500.0,0.00019099,2]
[408459948,1773676244587,-500.0,0.00019099,2]
[408459949,1773676244596,-500.0,0.00019099,2]
[408459950,1773676244607,-500.0,0.00019099,2]
[408459951,1773676244616,-348.09914817,0.00019099,2]
[408459952,1773676244626,-500.0,0.00019099,2]
[408459953,1773676244636,-500.0,0.00019099,2]
[408459954,1773676244646,-514.87444873,0.00019099,2]
[408459955,1773676244656,-500.0,0.00019099,2]
[408459956,1773676244665,-505.73766037,0.00019099,2]
[408459957,1773676244676,-500.0,0.00019099,2]
[408459958,1773676244687,-500.0,0.00019099,2]
[408459959,1773676244696,-500.0,0.00019099,2]
[408459960,1773676244706,-500.0,0.00019099,2]
[408459961,1773676244716,-500.0,0.00019099,2]
[408459962,1773676244725,-500.0,0.00019099,2]
[408459963,1773676244735,-309.40321204,0.00019099,2]
[408459964,1773676244745,-690.01041515,0.00019099,2]
[408459965,1773676244755,-309.75605228,0.00019099,2]
[408459966,1773676244765,-1549.0,0.000191,5]
[408459967,1773676244775,-185732.72282257,0.000191,2]
[408459968,1773676244787,-40817.98054881,0.000191,2]
[408459969,1773676244803,-1331.86659825,0.000191,2]
[408459972,1773676246207,-20334.54452643,0.000185,15]
[408459973,1773676246218,-266.180693,0.000185,15]
[408459974,1773676246473,-2070.0,0.000185,15]
[408459997,1773676957308,20114.2889199,9.5e-05,3]
[408459998,1773676965631,1058.28,8.118e-05,2]
[408459999,1773676965672,1058.28,8.545e-05,2]
[408460000,1773676965885,1058.28,8.972e-05,2]
[408460001,1773676966106,1058.28,9.399e-05,2]
[408460007,1773677139028,-399.53448107,9.827e-05,2]
[408460014,1773677365175,-300.0,9.826e-05,2]
[408460015,1773677365199,-300.0,9.826e-05,2]
[408460016,1773677365219,-30179.07472093,9.827e-05,2]
[408460017,1773677365240,-658.74551893,9.827e-05,2]
[408460018,1773677365260,-253.89066682,0.0001004,2]
[408460019,1773677365281,-1058.28,0.00010254,2]
[408460020,1773677365302,-200.81329582,0.00010581,2]
[408460021,1773677365325,-1058.28,0.00010681,2]
[408460022,1773677365346,-420.0,0.00010808,2]
[408460023,1773677365368,-313.0,0.00010808,2]
[408460024,1773677365389,-250.0,0.00010809,2]
[408460025,1773677365414,-382.65105002,0.00010809,2]
[408460026,1773677365442,-1058.28,0.00011108,2]
[408460027,1773677365466,-1058.28,0.00011536,2]
[408460028,1773677365487,-236.0,0.00011889,2]
[408460029,1773677365510,-596.99046748,0.00011963,2]
[408460052,1773677431316,-461.28953252,0.00011963,2]
[408460054,1773677431326,-718.28829649,0.0001239,2]
[408460055,1773677431338,-339.99170351,0.0001239,2]
[408460056,1773677431348,-218.28368421,0.000128,2]
[408460057,1773677431381,-6497.71631579,0.000128,2]
[408460058,1773677431577,-1000.0,0.00012815,2]
[408460059,1773677431588,-1200.0,0.00012816,2]
[408460060,1773677431597,-1200.0,0.00012816,2]
[408460061,1773677431610,-1058.28,0.00012817,2]
[408460062,1773677431619,-262.66982029,0.00012876,2]
[408460063,1773677431628,-300.0,0.00012899,2]
[408460064,1773677431637,-300.0,0.00012899,2]
[408460065,1773677431646,-4166.1,0.00013039,2]
[408460066,1773677431655,-2000.0,0.00013127,2]
[408460067,1773677431664,-5533.0,0.000132,3]
[408460068,1773677431675,-1058.28,0.00013244,2]
[408460069,1773677431684,-174.13,0.00013254,2]
[408460070,1773677431694,-151.0,0.00013379,2]
[408460071,1773677431703,-150.0,0.0001339,2]
[408460072,1773677431712,-962.0,0.00013391,2]
[408460073,1773677431721,-3240.0,0.00013425,2]
[408460074,1773677431731,-5533.0,0.000136,5]
[408460076,1773677431740,-1058.28,0.00013672,2]
[408460077,1773677431749,-500.0,0.00013699,2]
[408460078,1773677431759,-300.54386388,0.00013699,2]
[408460079,1773677431770,-312.7,0.00013699,2]
[408460080,1773677431781,-80.87613612,0.00013699,2]
[408460081,1773677431790,-200.0,0.00013699,2]
[408460082,1773677431800,-223.24,0.00013763,2]
[408460083,1773677431809,-1680.0,0.00014098,2]
[408460084,1773677431819,-1058.28,0.00014099,2]
[408460086,1773677431828,-420.0,0.00014147,2]
[408460087,1773677431838,-200.81329582,0.00014404,2]
[408460088,1773677431847,-6545.31934179,0.00014404,2]
[408460089,1773677431857,-9588.95724247,0.00014494,2]
[408460090,1773677431866,-255.0,0.00014501,2]
[408460091,1773677431877,-500.0,0.00014503,2]
[408460092,1773677431886,-500.0,0.00014503,2]
[408460093,1773677431896,-510.82536405,0.00014503,2]
[408460094,1773677431905,-307.60092342,0.00014503,2]
[408460095,1773677431916,-543.15857438,0.00014503,2]
[408460096,1773677431926,-574.28357467,0.00014503,2]
[408460097,1773677431935,-574.28357467,0.00014503,2]
[408460098,1773677431945,-500.0,0.00014503,2]
[408460099,1773677431954,-500.0,0.00014503,2]
[408460100,1773677431964,-574.28357467,0.00014503,2]
[408460101,1773677431973,-404.34466674,0.00014503,2]
[408460102,1773677431982,-511.85026815,0.00014503,2]
[408460103,1773677431992,-574.28357467,0.00014503,2]
[408460104,1773677432003,-574.28357467,0.00014503,2]
[408460105,1773677432013,-574.28357467,0.00014503,2]
[408460106,1773677432023,-574.28357467,0.00014503,2]
[408460107,1773677432033,-574.28357467,0.00014503,2]
[408460108,1773677432043,-574.28357467,0.00014503,2]
[408460109,1773677432053,-574.28357467,0.00014503,2]
[408460110,1773677432065,-574.28357467,0.00014503,2]
[408460111,1773677432075,-574.28357467,0.00014503,2]
[408460112,1773677432084,-574.28357467,0.00014503,2]
[408460113,1773677432095,-574.28357467,0.00014503,2]
[408460114,1773677432104,-574.28357467,0.00014503,2]
[408460115,1773677432113,-574.28357467,0.00014503,2]
[408460116,1773677432123,-574.28357467,0.00014503,2]
[408460117,1773677432132,-574.28357467,0.00014503,2]
[408460118,1773677432141,-574.28357467,0.00014503,2]
[408460119,1773677432151,-574.28357467,0.00014503,2]
[408460120,1773677432160,-574.28357467,0.00014503,2]
[408460121,1773677432171,-574.28357467,0.00014503,2]
[408460122,1773677432181,-574.28357467,0.00014503,2]
[408460123,1773677432190,-574.28357467,0.00014503,2]
[408460124,1773677432200,-574.28357467,0.00014503,2]
[408460125,1773677432210,-574.28357467,0.00014503,2]
[408460126,1773677432219,-574.28357467,0.00014503,2]
[408460127,1773677432229,-574.28357467,0.00014503,2]
[408460128,1773677432238,-574.28357467,0.00014503,2]
[408460129,1773677432248,-574.28357467,0.00014503,2]
[408460130,1773677432258,-574.28357467,0.00014503,2]
[408460131,1773677432268,-574.28357467,0.00014503,2]
[408460132,1773677432277,-574.28357467,0.00014503,2]
[408460133,1773677432286,-574.28357467,0.00014503,2]
[408460134,1773677432295,-574.28357467,0.00014503,2]
[408460135,1773677432304,-574.28357467,0.00014503,2]
[408460136,1773677432313,-574.28357467,0.00014503,2]
[408460137,1773677432323,-574.28357467,0.00014503,2]
[408460138,1773677432332,-574.28357467,0.00014503,2]
[408460139,1773677432341,-574.28357467,0.00014503,2]
[408460140,1773677432351,-574.28357467,0.00014503,2]
[408460141,1773677432360,-574.28357467,0.00014503,2]
[408460142,1773677432370,-574.28357467,0.00014503,2]
[408460143,1773677432379,-574.28357467,0.00014503,2]
[408460144,1773677432389,-574.28357467,0.00014503,2]
[408460145,1773677432398,-574.28357467,0.00014503,2]
[408460146,1773677432407,-574.28357467,0.00014503,2]
[408460147,1773677432417,-574.28357467,0.00014503,2]
[408460148,1773677432428,-574.28357467,0.00014503,2]
[408460149,1773677432437,-574.28357467,0.00014503,2]
[408460150,1773677432446,-574.28357467,0.00014503,2]
[408460151,1773677432456,-574.28357467,0.00014503,2]
[408460152,1773677432465,-569.8660087,0.00014503,2]
[408460153,1773677432475,-569.8660087,0.00014503,2]
[408460154,1773677432486,-569.8660087,0.00014503,2]
[408460155,1773677432497,-569.8660087,0.00014503,2]
[408460156,1773677432506,-569.8660087,0.00014503,2]
[408460157,1773677432515,-569.8660087,0.00014503,2]
[408460158,1773677432524,-569.8660087,0.00014503,2]
[408460159,1773677432534,-569.8660087,0.00014503,2]
[408460160,1773677432543,-569.8660087,0.00014503,2]
[408460161,1773677432553,-569.8660087,0.00014503,2]
[408460162,1773677432564,-569.8660087,0.00014503,2]
[408460163,1773677432574,-569.8660087,0.00014503,2]
[408460164,1773677432583,-569.8660087,0.00014503,2]
[408460165,1773677432593,-569.8660087,0.00014503,2]
[408460166,1773677432603,-569.8660087,0.00014503,2]
[408460167,1773677432613,-569.8660087,0.00014503,2]
[408460168,1773677432623,-569.8660087,0.00014503,2]
[408460169,1773677432632,-569.8660087,0.00014503,2]
[408460170,1773677432642,-569.8660087,0.00014503,2]
[408460171,1773677432652,-569.8660087,0.00014503,2]
[408460172,1773677432661,-569.8660087,0.00014503,2]
[408460173,1773677432674,-569.8660087,0.00014503,2]
[408460174,1773677432684,-569.8660087,0.00014503,2]
[408460175,1773677432693,-569.8660087,0.00014503,2]
[408460176,1773677432703,-569.8660087,0.00014503,2]
[408460177,1773677432712,-569.8660087,0.00014503,2]
[408460178,1773677432722,-569.8660087,0.00014503,2]
[408460179,1773677432731,-569.8660087,0.00014503,2]
[408460180,1773677432740,-569.8660087,0.00014503,2]
[408460181,1773677432749,-569.8660087,0.00014503,2]
[408460182,1773677432758,-569.8660087,0.00014503,2]
[408460183,1773677432768,-569.8660087,0.00014503,2]
[408460184,1773677432779,-569.8660087,0.00014503,2]
[408460185,1773677432788,-569.8660087,0.00014503,2]
[408460186,1773677432797,-569.8660087,0.00014503,2]
[408460187,1773677432807,-569.8660087,0.00014503,2]
[408460188,1773677432816,-569.8660087,0.00014503,2]
[408460189,1773677432825,-569.8660087,0.00014503,2]
[408460190,1773677432834,-569.86600869,0.00014503,2]
[408460191,1773677432843,-4999.99,0.00014504,2]
[408460192,1773677432852,-150.99,0.00014504,2]
[408460193,1773677432861,-9999.99,0.00014504,2]
[408460194,1773677432870,-430.68,0.00014504,2]
[408460195,1773677432879,-10695.07,0.00014504,2]
[408460196,1773677432889,-5344.92,0.00014504,2]
[408460197,1773677432898,-9999.99,0.00014504,2]
[408460198,1773677432907,-70001.05,0.00014504,2]
[408460199,1773677432917,-9999.99,0.00014504,2]
[408460200,1773677432927,-9345.62,0.00014504,2]
[408460201,1773677432936,-150.99,0.00014504,2]
[408460202,1773677432945,-9999.99,0.00014504,2]